fUSD/lending_fUSD_20241221
["ID","MTS","AMOUNT","RATE_DAILY","PERIOD"]
[346178588,1734765084197,-500.0,0.00022188,2]
[346178589,1734765084207,-909.03,0.00022188,2]
[346178590,1734765084216,-1204.118159,0.00022188,2]
[346178591,1734765084225,-742.5,0.00022188,2]
[346178592,1734765084235,-810.145927,0.00022188,2]
[346178593,1734765084244,-534.19,0.00022188,2]
[346178594,1734765084253,-1459.91,0.00022188,2]
[346178595,1734765084264,-156.76574,0.00022188,2]
[346178596,1734765084273,-987.03,0.00022188,2]
[346178597,1734765084283,-1080.78,0.00022188,2]
[346178598,1734765084293,-167.353892,0.00022188,2]
[346178599,1734765084303,-907.79,0.00022188,2]
[346178600,1734765084314,-5648.75,0.00022188,2]
[346178601,1734765084323,-1707.55,0.00022188,2]
[346178602,1734765084333,-500.0,0.00022188,2]
[346178603,1734765084343,-555.06,0.00022188,2]
[346178604,1734765084352,-4690.0,0.00022188,2]
[346178605,1734765084361,-500.0,0.00022189,2]
[346178606,1734765084371,-500.0,0.00022189,2]
[346178607,1734765084380,-438.0802183,0.00022189,2]
[346178608,1734765084391,-500.0,0.00022189,2]
[346178609,1734765084401,-500.0,0.00022189,2]
[346178610,1734765084412,-500.0,0.00022189,2]
[346178611,1734765084422,-500.0,0.00022189,2]
[346178612,1734765084431,-500.0,0.00022189,2]
[346178613,1734765084442,-500.0,0.00022189,2]
[346178614,1734765084451,-619.19286791,0.00022189,2]
[346178615,1734765084461,-500.0,0.00022189,2]
[346178616,1734765084470,-500.0,0.00022189,2]
[346178617,1734765084480,-500.0,0.00022189,2]
[346178618,1734765084489,-492.07094443,0.00022189,2]
[346178619,1734765084500,-500.0,0.00022189,2]
[346178620,1734765084510,-500.0,0.00022189,2]
[346178621,1734765084519,-500.0,0.00022189,2]
[346178622,1734765084528,-500.0,0.00022189,2]
[346178623,1734765084538,-500.0,0.00022189,2]
[346178624,1734765084547,-500.0,0.00022189,2]
[346178625,1734765084558,-500.0,0.00022189,2]
[346178626,1734765084567,-500.0,0.00022189,2]
[346178627,1734765084577,-500.0,0.00022189,2]
[346178628,1734765084587,-800.63,0.00022189,2]
[346178629,1734765084599,-500.0,0.00022189,2]
[346178630,1734765084608,-500.0,0.00022189,2]
[346178631,1734765084619,-500.0,0.00022189,2]
[346178632,1734765084628,-500.0,0.00022189,2]
[346178633,1734765084638,-557.93,0.00022189,2]
[346178634,1734765084647,-564.53,0.00022189,2]
[346178635,1734765084656,-1097.94,0.00022189,2]
[346178636,1734765084665,-1312.98,0.00022189,2]
[346178637,1734765084674,-713.67,0.00022189,2]
[346178638,1734765084684,-545.6,0.00022189,2]
[346178639,1734765084693,-617.61,0.00022189,2]
[346178640,1734765084703,-500.0,0.00022189,2]
[346178641,1734765084712,-1027.31,0.00022189,2]
[346178642,1734765084722,-781.83,0.00022189,2]
[346178643,1734765084732,-839.23,0.00022189,2]
[346178644,1734765084741,-529.71,0.00022189,2]
[346178645,1734765084750,-1178.66,0.00022189,2]
[346178646,1734765084762,-2429.01,0.00022189,2]
[346178647,1734765084771,-500.0,0.00022189,2]
[346178648,1734765084780,-946.11,0.00022189,2]
[346178649,1734765084789,-500.0,0.00022189,2]
[346178650,1734765084799,-2009.81,0.00022189,2]
[346178651,1734765084809,-832.29,0.00022189,2]
[346178652,1734765084818,-553.19,0.0002219,2]
[346178653,1734765084827,-540.6,0.0002219,2]
[346178654,1734765084836,-500.0,0.0002219,2]
[346178655,1734765084845,-589.08,0.0002219,2]
[346178656,1734765084854,-691.96,0.0002219,2]
[346178657,1734765084863,-572.24,0.0002219,2]
[346178658,1734765084873,-711.14,0.0002219,2]
[346178659,1734765084882,-842.2,0.0002219,2]
[346178660,1734765084891,-928.46,0.0002219,2]
[346178661,1734765084966,-500.0,0.0002219,2]
[346178662,1734765084975,-647.31,0.0002219,2]
[346178663,1734765084984,-921.84,0.0002219,2]
[346178664,1734765084994,-931.6,0.0002219,2]
[346178665,1734765085003,-679.34,0.0002219,2]
[346178666,1734765085012,-621.87,0.0002219,2]
[346178667,1734765085021,-707.66,0.0002219,2]
[346178668,1734765085030,-500.0,0.0002219,2]
[346178669,1734765085039,-999.0,0.0002219,2]
[346178670,1734765085048,-1055.71,0.0002219,2]
[346178671,1734765085058,-812.57,0.0002219,2]
[346178672,1734765085067,-1737.81,0.0002219,2]
[346178673,1734765085077,-1167.67,0.0002219,2]
[346178674,1734765085086,-1699.86,0.0002219,2]
[346178675,1734765085096,-500.0,0.0002219,2]
[346178676,1734765085105,-500.0,0.0002219,2]
[346178677,1734765085114,-614.13,0.0002219,2]
[346178678,1734765085124,-581.36556176,0.0002219,2]
[346178679,1734765085133,-1407.97,0.0002219,2]
[346178680,1734765085142,-3149.19,0.0002219,2]
[346178681,1734765085152,-505.48,0.0002219,2]
[346178682,1734765085162,-955.16,0.0002219,2]
[346178683,1734765085171,-500.0,0.0002219,2]
[346178684,1734765085181,-3466.42,0.0002219,2]
[346178685,1734765085191,-500.0,0.0002219,2]
[346178686,1734765085199,-1279.44,0.0002219,2]
[346178687,1734765085209,-500.0,0.0002219,2]
[346178688,1734765085218,-803.44,0.0002219,2]
[346178689,1734765085227,-588.79,0.0002219,2]
[346178690,1734765085237,-500.0,0.0002219,2]
[346178691,1734765085246,-500.0,0.0002219,2]
[346178692,1734765085255,-520.04,0.00022191,2]
[346178693,1734765085264,-190.82977947,0.00022191,2]
[346178694,1734765085274,-500.0,0.00022191,2]
[346178695,1734765085283,-500.0,0.00022191,2]
[346178696,1734765085291,-500.0,0.00022191,2]
[346178697,1734765085301,-500.0,0.00022191,2]
[346178698,1734765085311,-500.0,0.00022191,2]
[346178699,1734765085321,-500.0,0.00022191,2]
[346178700,1734765085330,-500.0,0.00022191,2]
[346178701,1734765085339,-500.0,0.00022191,2]
[346178702,1734765085350,-172.83832531,0.00022191,2]
[346178703,1734765085359,-617.49,0.00022191,2]
[346178704,1734765085369,-500.0,0.00022191,2]
[346178705,1734765085378,-500.0,0.00022191,2]
[346178706,1734765085387,-500.0,0.00022191,2]
[346178707,1734765085397,-500.0,0.00022191,2]
[346178708,1734765085406,-614.48,0.00022191,2]
[346178709,1734765085417,-500.0,0.00022191,2]
[346178710,1734765085427,-500.0,0.00022191,2]
[346178711,1734765085436,-500.0,0.00022191,2]
[346178712,1734765085446,-500.0,0.00022191,2]
[346178713,1734765085455,-500.0,0.00022191,2]
[346178714,1734765085464,-500.0,0.00022191,2]
[346178715,1734765085474,-460.46088945,0.00022191,2]
[346178716,1734765085483,-500.0,0.00022191,2]
[346178717,1734765085492,-569.52,0.00022191,2]
[346178718,1734765085502,-500.0,0.00022191,2]
[346178719,1734765085511,-500.0,0.00022191,2]
[346178720,1734765085520,-500.0,0.00022191,2]
[346178721,1734765085530,-500.0,0.00022191,2]
[346178722,1734765085541,-500.0,0.00022191,2]
[346178723,1734765085550,-521.59,0.00022191,2]
[346178724,1734765085560,-618.79,0.00022191,2]
[346178725,1734765085569,-500.0,0.00022191,2]
[346178726,1734765085582,-526.53,0.00022191,2]
[346178727,1734765085592,-500.0,0.00022191,2]
[346178728,1734765085602,-500.0,0.00022191,2]
[346178729,1734765085611,-500.0,0.00022191,2]
[346178730,1734765085622,-500.0,0.00022191,2]
[346178731,1734765085631,-609.6,0.00022191,2]
[346178732,1734765085640,-500.0,0.00022191,2]
[346178733,1734765085650,-528.4,0.00022191,2]
[346178734,1734765085662,-523.51,0.00022191,2]
[346178735,1734765085671,-637.77740535,0.00022191,2]
[346178736,1734765085680,-500.0,0.00022191,2]
[346178737,1734765085689,-500.0,0.00022191,2]
[346178738,1734765085699,-654.57,0.00022191,2]
[346178739,1734765085707,-500.0,0.00022191,2]
[346178740,1734765085716,-659.53,0.00022191,2]
[346178741,1734765085726,-530.0,0.00022191,2]
[346178742,1734765085736,-567.63,0.00022191,2]
[346178743,1734765085746,-500.0,0.00022191,2]
[346178744,1734765085757,-591.24,0.00022191,2]
[346178745,1734765085766,-500.0,0.00022191,2]
[346178746,1734765085775,-652.96,0.00022191,2]
[346178747,1734765085784,-500.0,0.00022191,2]
[346178748,1734765085794,-272.48805418,0.00022191,2]
[346178749,1734765085803,-586.29,0.00022191,2]
[346178750,1734765085813,-500.0,0.00022191,2]
[346178751,1734765085823,-500.0,0.00022191,2]
[346178752,1734765085832,-500.0,0.00022191,2]
[346178753,1734765085842,-500.0,0.00022191,2]
[346178754,1734765085851,-500.0,0.00022191,2]
[346178755,1734765085860,-500.0,0.00022191,2]
[346178756,1734765085870,-500.0,0.00022191,2]
[346178757,1734765085879,-500.0,0.00022191,2]
[346178758,1734765085888,-500.0,0.00022191,2]
[346178759,1734765085897,-500.0,0.00022191,2]
[346178760,1734765085907,-645.7,0.00022191,2]
[346178761,1734765085916,-500.0,0.00022191,2]
[346178762,1734765085926,-500.0,0.00022191,2]
[346178763,1734765085936,-559.40858136,0.00022191,2]
[346178764,1734765085945,-500.0,0.00022191,2]
[346178765,1734765085955,-554.92,0.00022191,2]
[346178766,1734765085964,-1268.03,0.00022191,2]
[346178767,1734765085974,-540.99,0.00022191,2]
[346178768,1734765085983,-1370.66,0.00022191,2]
[346178769,1734765085993,-500.0,0.00022191,2]
[346178770,1734765086002,-500.0,0.00022191,2]
[346178771,1734765086011,-562.67,0.00022191,2]
[346178772,1734765086021,-850.99,0.00022191,2]
[346178773,1734765086030,-602.91,0.00022191,2]
[346178774,1734765086040,-2360.29,0.00022191,2]
[346178775,1734765086050,-665.96,0.00022191,2]
[346178776,1734765086061,-600.01,0.00022191,2]
[346178777,1734765086071,-500.0,0.00022191,2]
[346178778,1734765086080,-2294.49,0.00022191,2]
[346178779,1734765086090,-500.0,0.00022191,2]
[346178780,1734765086099,-3574.58,0.00022191,2]
[346178781,1734765086109,-829.63,0.00022191,2]
[346178782,1734765086118,-613.95,0.00022191,2]
[346178783,1734765086127,-1224.85,0.00022191,2]
[346178784,1734765086136,-956.64,0.00022191,2]
[346178785,1734765086145,-500.0,0.00022191,2]
[346178786,1734765086154,-1849.46,0.00022191,2]
[346178787,1734765086163,-989.46,0.00022191,2]
[346178788,1734765086172,-500.0,0.00022191,2]
[346178789,1734765086181,-656.77,0.00022191,2]
[346178790,1734765086191,-500.0,0.00022191,2]
[346178791,1734765086200,-574.74,0.00022191,2]
[346178792,1734765086210,-500.0,0.00022191,2]
[346178793,1734765086219,-516.88,0.00022191,2]
[346178794,1734765086228,-500.0,0.00022191,2]
[346178795,1734765086237,-696.16,0.00022191,2]
[346178796,1734765086246,-500.0,0.00022191,2]
[346178797,1734765086256,-500.0,0.00022191,2]
[346178798,1734765086266,-779.16,0.00022191,2]
[346178799,1734765086275,-664.07,0.00022191,2]
[346178800,1734765086284,-754.41,0.00022191,2]
[346178801,1734765086294,-598.65,0.00022191,2]
[346178802,1734765086304,-537.46,0.00022191,2]
[346178803,1734765086316,-500.0,0.00022191,2]
[346178804,1734765086326,-1040.23,0.00022191,2]
[346178805,1734765086336,-550.54,0.00022191,2]
[346178806,1734765086345,-1545.76,0.00022191,2]
[346178807,1734765086355,-609.74,0.00022191,2]
[346178808,1734765086364,-2251.73,0.00022191,2]
[346178809,1734765086374,-500.0,0.00022191,2]
[346178810,1734765086383,-500.0,0.00022191,2]
[346178811,1734765086392,-667.89,0.00022191,2]
[346178812,1734765086402,-500.0,0.00022191,2]
[346178813,1734765086412,-858.31,0.00022191,2]
[346178814,1734765086421,-910.96,0.00022191,2]
[346178815,1734765086431,-525.83,0.00022191,2]
[346178816,1734765086440,-675.58,0.00022191,2]
[346178817,1734765086449,-1257.52,0.00022191,2]
[346178818,1734765086460,-691.15,0.00022191,2]
[346178819,1734765086469,-588.56,0.00022191,2]
[346178820,1734765086479,-535.87,0.00022191,2]
[346178821,1734765086489,-1844.44,0.00022191,2]
[346178822,1734765086499,-1112.66,0.00022191,2]
[346178823,1734765086509,-500.0,0.00022191,2]
[346178824,1734765086519,-3778.3,0.00022191,2]
[346178825,1734765086528,-743.81,0.00022191,2]
[346178826,1734765086538,-763.06,0.00022191,2]
[346178827,1734765086548,-971.73,0.00022191,2]
[346178828,1734765086558,-2008.55,0.00022191,2]
[346178829,1734765086568,-695.31,0.00022191,2]
[346178830,1734765086578,-545.8,0.00022191,2]
[346178831,1734765086588,-4156.22,0.00022191,2]
[346178832,1734765086599,-500.0,0.00022191,2]
[346178833,1734765086610,-1066.88,0.00022191,2]
[346178834,1734765086620,-8814.31,0.00022191,2]
[346178835,1734765086629,-641.57,0.00022191,2]
[346178836,1734765086639,-500.0,0.00022191,2]
[346178837,1734765086648,-1201.21,0.00022191,2]
[346178838,1734765086658,-1027.94,0.00022191,2]
[346178839,1734765086667,-2074.99,0.00022191,2]
[346178840,1734765086677,-986.58,0.00022191,2]
[346178841,1734765086688,-832.32,0.00022191,2]
[346178842,1734765086698,-649.16,0.00022191,2]
[346178843,1734765086707,-892.74,0.00022191,2]
[346178844,1734765086717,-594.18,0.00022191,2]
[346178845,1734765086726,-1670.61,0.00022191,2]
[346178846,1734765086735,-679.53,0.00022191,2]
[346178847,1734765086745,-922.69,0.00022191,2]
[346178848,1734765086754,-850.92,0.00022191,2]
[346178849,1734765086764,-2604.91,0.00022191,2]
[346178850,1734765086773,-679.02,0.00022191,2]
[346178851,1734765086783,-639.51,0.00022191,2]
[346178852,1734765086792,-597.41,0.00022191,2]
[346178853,1734765086802,-539.08,0.00022191,2]
[346178854,1734765086812,-936.04,0.00022191,2]
[346178855,1734765086823,-500.0,0.00022191,2]
[346178856,1734765086832,-667.52,0.00022191,2]
[346178857,1734765086841,-1171.35,0.00022191,2]
[346178858,1734765086851,-500.0,0.00022191,2]
[346178859,1734765086861,-500.0,0.00022191,2]
[346178860,1734765086870,-693.7,0.00022191,2]
[346178861,1734765086880,-572.81,0.00022191,2]
[346178862,1734765086890,-828.43,0.00022191,2]
[346178863,1734765086899,-1349.96,0.00022191,2]
[346178864,1734765086909,-4988.53,0.00022191,2]
[346178865,1734765086919,-903.09,0.00022191,2]
[346178866,1734765086929,-394.0,0.00022192,2]
[346178867,1734765086938,-1500.0,0.00022194,2]
[346178868,1734765086947,-1017.58,0.00022219,7]
[346178869,1734765086957,-1017.58,0.00022219,7]
[346178870,1734765086966,-1017.58,0.00022219,7]
[346178871,1734765086975,-1017.58,0.00022219,7]
[346178872,1734765086984,-1017.58,0.00022219,7]
[346178873,1734765086994,-1017.58,0.00022219,7]
[346178874,1734765087003,-1017.58,0.00022219,7]
[346178875,1734765087013,-1017.58,0.00022219,7]
[346178876,1734765087023,-1017.58,0.00022219,7]
[346178877,1734765087033,-1017.58,0.00022219,7]
[346178878,1734765087043,-1017.58,0.00022219,7]
[346178879,1734765087052,-1017.58,0.00022219,7]
[346178880,1734765087063,-1017.58,0.00022219,7]
[346178881,1734765087072,-1017.58,0.00022219,7]
[346178882,1734765087082,-1017.58,0.00022219,7]
[346178883,1734765087091,-1017.58,0.00022219,7]
[346178884,1734765087101,-1017.58,0.00022219,7]
[346178885,1734765087111,-1017.58,0.00022219,7]
[346178886,1734765087120,-1017.58,0.00022219,7]
[346178887,1734765087130,-1017.58,0.00022219,7]
[346178888,1734765087139,-1017.58,0.00022219,7]
[346178889,1734765087149,-1017.58,0.00022219,7]
[346178890,1734765087160,-1017.58,0.00022219,7]
[346178891,1734765087170,-1017.59849738,0.00022219,7]
[346178892,1734765087180,-150.0,0.00022231,2]
[346178893,1734765087191,-150.0,0.00022232,2]
[346178894,1734765087201,-742.0,0.00022233,2]
[346178895,1734765087211,-150.0,0.00022235,2]
[346178896,1734765087222,-150.0,0.00022239,2]
[346178897,1734765087233,-150.0,0.0002224,2]
[346178898,1734765087243,-150.0,0.00022241,2]
[346178899,1734765087253,-150.0,0.00022243,2]
[346178900,1734765087264,-150.0,0.00022245,2]
[346178901,1734765087275,-1500.0,0.00022246,2]
[346178902,1734765087286,-150.0,0.0002225,2]
[346178903,1734765087296,-153.96849825,0.00022256,2]
[346178904,1734765087306,-150.0,0.00022259,2]
[346178905,1734765087317,-150.0,0.00022262,2]
[346178906,1734765087327,-150.0,0.00022263,2]
[346178907,1734765087337,-150.0,0.00022268,2]
[346178908,1734765087347,-150.0,0.00022268,2]
[346178909,1734765087357,-1506.45226281,0.00022274,2]
[346178910,1734765087367,-150.0,0.00022274,2]
[346178911,1734765087378,-150.0,0.00022274,2]
[346178912,1734765087388,-150.0,0.00022276,2]
[346178913,1734765087398,-150.0,0.00022278,2]
[346178914,1734765087408,-150.0,0.0002228,2]
[346178915,1734765087419,-150.0,0.0002228,2]
[346178916,1734765087429,-112930.07110436,0.0002228,2]
[346178917,1734765087440,-150.0,0.00022281,2]
[346178918,1734765087450,-150.0,0.00022282,2]
[346178919,1734765087460,-150.0,0.00022283,2]
[346178920,1734765087470,-150.0,0.00022287,2]
[346178921,1734765087480,-538.36945,0.00022288,7]
[346178922,1734765087492,-150.0,0.00022288,2]
[346178923,1734765087501,-150.0,0.0002229,2]
[346178924,1734765087511,-150.0,0.0002229,2]
[346178925,1734765087521,-150.0,0.00022291,2]
[346178926,1734765087532,-150.0,0.00022295,2]
[346178927,1734765087542,-150.0,0.00022297,2]
[346178928,1734765087553,-150.0,0.00022304,2]
[346178929,1734765087563,-150.0,0.00022306,2]
[346178930,1734765087573,-150.0,0.00022307,2]
[346178931,1734765087587,-150.0,0.00022308,2]
[346178932,1734765087597,-150.0,0.00022311,2]
[346178933,1734765087607,-150.0,0.00022313,2]
[346178934,1734765087616,-150.0,0.00022314,2]
[346178935,1734765087627,-150.0,0.00022314,2]
[346178936,1734765087637,-158.2,0.00022315,2]
[346178937,1734765087648,-150.0,0.0002232,2]
[346178938,1734765087659,-500.0,0.0002232,2]
[346178939,1734765087668,-2130.83,0.00022322,7]
[346178940,1734765087678,-2130.83,0.00022322,7]
[346178941,1734765087688,-2130.83,0.00022322,7]
[346178942,1734765087700,-2130.83,0.00022322,7]
[346178943,1734765087711,-150.0,0.00022323,2]
[346178944,1734765087721,-150.0,0.00022323,2]
[346178945,1734765087732,-1500.0,0.00022327,2]
[346178946,1734765087741,-1500.0,0.00022328,2]
[346178947,1734765087752,-150.0,0.00022331,2]
[346178948,1734765087762,-150.0,0.00022333,2]
[346178949,1734765087772,-150.0,0.00022333,2]
[346178950,1734765087783,-150.0,0.00022338,2]
[346178951,1734765087795,-150.0,0.00022341,2]
[346178952,1734765087806,-150.0,0.00022343,2]
[346178953,1734765087816,-1500.0,0.00022344,2]
[346178954,1734765087826,-150.0,0.00022347,2]
[346178955,1734765087836,-824.7,0.00022348,2]
[346178956,1734765087846,-150.0,0.00022349,2]
[346178957,1734765087855,-976.98,0.00022356,2]
[346178958,1734765087864,-238.21,0.00022356,2]
[346178959,1734765087873,-365.07,0.00022356,2]
[346178960,1734765087883,-150.0,0.00022356,2]
[346178961,1734765087893,-154.0,0.00022356,2]
[346178962,1734765087902,-300.0,0.00022356,2]
[346178963,1734765087912,-436.21,0.00022356,2]
[346178964,1734765087921,-152.47,0.00022356,2]
[346178965,1734765087932,-150.0,0.00022357,2]
[346178966,1734765087942,-150.0,0.00022358,2]
[346178967,1734765087951,-150.0,0.00022358,2]
[346178968,1734765087961,-150.0,0.00022358,2]
[346178969,1734765087971,-150.0,0.00022361,2]
[346178970,1734765087981,-150.0,0.00022362,2]
[346178971,1734765087991,-1500.0,0.00022362,2]
[346178972,1734765088000,-150.0,0.0002237,2]
[346178973,1734765088010,-224.847,0.00022373,2]
[346178974,1734765088019,-3765.63,0.00022373,2]
[346178975,1734765088029,-800.0,0.00022384,2]
[346178976,1734765088039,-800.0,0.00022384,2]
[346178977,1734765088049,-150.0,0.00022388,2]
[346178978,1734765088058,-150.0,0.00022389,2]
[346178979,1734765088068,-1500.0,0.00022389,2]
[346178980,1734765088077,-150.0,0.00022392,2]
[346178981,1734765088087,-500.0,0.00022397,3]
[346178982,1734765088097,-500.0,0.00022397,3]
[346178983,1734765088107,-500.0,0.00022397,3]
[346178984,1734765088116,-500.0,0.00022397,3]
[346178985,1734765088126,-500.0,0.00022397,3]
[346178986,1734765088136,-995.03,0.00022397,3]
[346178987,1734765088146,-150.0,0.00022398,2]
[346178988,1734765088156,-150.0,0.00022399,2]
[346178989,1734765088166,-652.69,0.00022399,2]
[346178990,1734765088175,-265.87,0.000224,7]
[346178991,1734765088186,-175.36994322,0.000224,2]
[346178992,1734765088196,-150.0,0.00022404,2]
[346178993,1734765088205,-150.0,0.00022406,2]
[346178994,1734765088215,-150.0,0.00022408,2]
[346178995,1734765088225,-150.0,0.00022409,2]
[346178996,1734765088235,-150.0,0.0002241,2]
[346178997,1734765088245,-150.0,0.00022413,2]
[346178998,1734765088255,-150.0,0.00022417,2]
[346178999,1734765088266,-150.0,0.00022427,2]
[346179000,1734765088276,-1500.0,0.00022427,2]
[346179001,1734765088286,-150.0,0.00022428,2]
[346179002,1734765088295,-1500.0,0.0002243,2]
[346179003,1734765088305,-231.06566,0.00022431,2]
[346179004,1734765088317,-150.0,0.00022431,2]
[346179005,1734765088327,-150.0,0.00022432,2]
[346179006,1734765088336,-150.0,0.00022433,2]
[346179007,1734765088347,-150.0,0.00022436,2]
[346179008,1734765088356,-150.0,0.00022438,2]
[346179009,1734765088366,-150.0,0.0002244,2]
[346179010,1734765088376,-150.0,0.0002244,2]
[346179011,1734765088387,-150.0,0.00022442,2]
[346179012,1734765088397,-150.0,0.00022446,2]
[346179013,1734765088406,-150.0,0.00022447,2]
[346179014,1734765088417,-1500.0,0.00022447,2]
[346179015,1734765088427,-150.0,0.00022448,2]
[346179016,1734765088437,-150.0,0.00022449,2]
[346179017,1734765088448,-1500.0,0.00022458,2]
[346179018,1734765088458,-150.0,0.00022459,2]
[346179019,1734765088468,-150.0,0.0002246,2]
[346179020,1734765088478,-150.0,0.0002246,2]
[346179021,1734765088489,-500.0,0.00022462,2]
[346179022,1734765088499,-609.12,0.00022462,2]
[346179023,1734765088509,-731.44,0.00022462,2]
[346179024,1734765088693,-500.0,0.00022462,2]
[346179025,1734765088702,-500.0,0.00022462,2]
[346179026,1734765088712,-909.03,0.00022462,2]
[346179027,1734765088723,-1204.118159,0.00022462,2]
[346179028,1734765088732,-742.5,0.00022462,2]
[346179029,1734765088741,-810.145927,0.00022462,2]
[346179030,1734765088752,-534.19,0.00022462,2]
[346179031,1734765088762,-1459.91,0.00022462,2]
[346179032,1734765088771,-156.76574,0.00022462,2]
[346179033,1734765088781,-987.03,0.00022462,2]
[346179034,1734765088793,-1080.78,0.00022462,2]
[346179035,1734765088803,-167.353892,0.00022462,2]
[346179036,1734765088814,-907.79,0.00022462,2]
[346179037,1734765088824,-5648.75,0.00022462,2]
[346179038,1734765088835,-1707.55,0.00022462,2]
[346179039,1734765088844,-500.0,0.00022462,2]
[346179040,1734765088853,-555.06,0.00022462,2]
[346179041,1734765088863,-4690.0,0.00022462,2]
[346179042,1734765088872,-500.0,0.00022463,2]
[346179043,1734765088881,-500.0,0.00022463,2]
[346179044,1734765088891,-500.0,0.00022463,2]
[346179045,1734765088900,-255.74501861,0.00022463,2]
[346179046,1734765088910,-500.0,0.00022463,2]
[346179047,1734765088922,-500.0,0.00022463,2]
[346179048,1734765088931,-500.0,0.00022463,2]
[346179049,1734765088941,-500.0,0.00022463,2]
[346179050,1734765088951,-500.0,0.00022463,2]
[346179051,1734765088961,-500.0,0.00022463,2]
[346179052,1734765088970,-500.0,0.00022463,2]
[346179053,1734765088980,-500.0,0.00022463,2]
[346179054,1734765088990,-579.22600689,0.00022463,2]
[346179055,1734765088999,-500.0,0.00022463,2]
[346179056,1734765089008,-500.0,0.00022463,2]
[346179057,1734765089019,-500.0,0.00022463,2]
[346179058,1734765089028,-500.0,0.00022463,2]
[346179059,1734765089038,-500.0,0.00022463,2]
[346179060,1734765089047,-500.0,0.00022463,2]
[346179061,1734765089060,-500.0,0.00022463,2]
[346179062,1734765089070,-800.63,0.00022463,2]
[346179063,1734765089081,-500.0,0.00022463,2]
[346179064,1734765089090,-500.0,0.00022463,2]
[346179065,1734765089099,-500.0,0.00022463,2]
[346179066,1734765089109,-500.0,0.00022463,2]
[346179067,1734765089119,-557.93,0.00022463,2]
[346179068,1734765089130,-564.53,0.00022463,2]
[346179069,1734765089139,-1097.94,0.00022463,2]
[346179070,1734765089149,-1312.98,0.00022463,2]
[346179071,1734765089159,-713.67,0.00022463,2]
[346179072,1734765089168,-545.6,0.00022463,2]
[346179073,1734765089178,-617.61,0.00022463,2]
[346179074,1734765089187,-500.0,0.00022463,2]
[346179075,1734765089197,-1027.31,0.00022463,2]
[346179076,1734765089206,-781.83,0.00022463,2]
[346179077,1734765089217,-839.23,0.00022463,2]
[346179078,1734765089226,-529.71,0.00022463,2]
[346179079,1734765089236,-1178.66,0.00022463,2]
[346179080,1734765089246,-2429.01,0.00022463,2]
[346179081,1734765089256,-500.0,0.00022463,2]
[346179082,1734765089265,-946.11,0.00022463,2]
[346179083,1734765089275,-500.0,0.00022463,2]
[346179084,1734765089284,-2009.81,0.00022463,2]
[346179085,1734765089294,-832.29,0.00022463,2]
[346179086,1734765089303,-553.19,0.00022464,2]
[346179087,1734765089314,-540.6,0.00022464,2]